fUSD/lending_fUSD_20250521
["ID","MTS","AMOUNT","RATE_DAILY","PERIOD"]
[361840022,1747827127839,-2110.0,0.00041178,30]
[361840023,1747827127852,-150.0,0.00041196,30]
[361840024,1747827127865,-150.0,0.00041196,30]
[361840025,1747827127876,-40000.0,0.000412,50]
[361840026,1747827127888,-82900.98878364,0.000412,30]
[361840027,1747827127899,-302.63,0.000412,14]
[361840028,1747827127910,-151.0,0.000412,14]
[361840029,1747827127922,-151.0,0.000412,14]
[361840030,1747827127933,-151.0,0.000412,14]
[361840031,1747827127944,-151.0,0.000412,14]
[361840032,1747827127956,-1156.293949,0.000412,14]
[361840033,1747827127967,-1156.293949,0.000412,14]
[361840034,1747827127978,-150.0,0.00041228,2]
[361840035,1747827127989,-300.0,0.00041229,2]
[361840036,1747827128001,-1435.465986,0.00041262,7]
[361840037,1747827128012,-3803.857962,0.00041262,7]
[361840038,1747827128023,-2833.089105,0.00041262,7]
[361840039,1747827128035,-25000.0080067,0.00041262,120]
[361840040,1747827128046,-5485.95917489,0.00041262,13]
[361840041,1747827128057,-500.0,0.00041268,60]
[361840042,1747827128069,-150.0,0.00041274,30]
[361840043,1747827128081,-150.0,0.00041303,30]
[361840044,1747827128094,-500.0,0.00041309,30]
[361840045,1747827128105,-150.0,0.00041352,30]
[361840046,1747827128116,-5000.0,0.00041369,3]
[361840047,1747827128127,-150.0,0.00041395,120]
[361840048,1747827128138,-1441.14,0.00041407,30]
[361840049,1747827128148,-1441.14,0.00041407,30]
[361840050,1747827128159,-150.0,0.00041418,120]
[361840051,1747827128169,-150.0,0.0004143,30]
[361840052,1747827128180,-150.0,0.00041437,120]
[361840053,1747827128190,-3000.0,0.0004144,45]
[361840054,1747827128201,-190.94935954,0.00041502,2]
[361840055,1747827128212,-150.0,0.00041508,30]
[361840056,1747827128223,-11712.61,0.0004152,30]
[361840057,1747827128234,-194.72792766,0.00041537,2]
[361840058,1747827128244,-1546.48273779,0.00041537,2]
[361840059,1747827128258,-3223.0,0.00041543,120]
[361840060,1747827128268,-150.0,0.00041586,30]
[361840061,1747827128279,-350.26029,0.000416,120]
[361840062,1747827128290,-18329.56,0.000416,14]
[361840063,1747827128301,-150.0,0.00041625,30]
[361840064,1747827128312,-150.0,0.00041664,30]
[361840065,1747827128322,-2110.0,0.00041678,30]
[361840066,1747827128334,-281.15,0.000417,120]
[361840067,1747827128344,-269.74,0.000417,120]
[361840068,1747827128355,-150.0,0.00041742,30]
[361840069,1747827128365,-150.0,0.00041748,120]
[361840070,1747827128376,-150.0,0.00041748,120]
[361840071,1747827128387,-199814.79881634,0.00041798,120]
[361840072,1747827128398,-3039.71399199,0.00041798,120]
[361840073,1747827128410,-9150.51269561,0.00041798,120]
[361840074,1747827128421,-49000.0,0.000418,120]
[361840075,1747827128432,-50000.0,0.000418,50]
[361840076,1747827128443,-1512.6885517,0.000418,120]
[361840077,1747827128454,-150.0,0.0004182,30]
[361840078,1747827128465,-150.0,0.00041839,30]
[361840079,1747827128476,-150.0,0.00041839,30]
[361840080,1747827128487,-11544.0,0.0004185,120]
[361840081,1747827128499,-517.5291177,0.0004188,120]
[361840082,1747827128510,-10700.0,0.0004188,120]
[361840083,1747827128521,-150.0,0.00041898,30]
[361840084,1747827128531,-39028.46295319,0.000419,120]
[361840085,1747827128543,-160.0,0.000419,41]
[361840086,1747827128554,-147308.09680484,0.000419,120]
[361840087,1747827128567,-50000.0,0.000419,120]
[361840088,1747827128580,-1200.0,0.000419,15]
[361840089,1747827128592,-856.45402615,0.000419,2]
[361840090,1747827128870,-353.35,0.00041918,30]
[361840091,1747827128882,-353.35,0.00041918,30]
[361840092,1747827128893,-353.35,0.00041918,30]
[361840093,1747827128903,-352.84,0.00041918,30]
[361840094,1747827128913,-150.0,0.00041918,30]
[361840095,1747827128924,-795.22,0.00041918,30]
[361840096,1747827128934,-150.0,0.00041918,30]
[361840097,1747827128944,-2641.02770045,0.0004192,120]
[361840098,1747827128953,-2641.02770045,0.0004192,120]
[361840099,1747827128964,-2641.02770045,0.0004192,120]
[361840100,1747827128974,-2641.02770045,0.0004192,120]
[361840101,1747827128985,-2641.02770045,0.0004192,120]
[361840102,1747827128995,-2641.02770045,0.0004192,120]
[361840103,1747827129005,-2641.02770045,0.0004192,120]
[361840104,1747827129015,-2641.02770045,0.0004192,120]
[361840105,1747827129026,-2641.02770045,0.0004192,120]
[361840106,1747827129035,-2641.02770045,0.0004192,120]
[361840107,1747827129046,-2641.02770045,0.0004192,120]
[361840108,1747827129056,-2641.02770045,0.0004192,120]
[361840109,1747827129066,-2641.02770045,0.0004192,120]
[361840110,1747827129076,-2641.02770045,0.0004192,120]
[361840111,1747827129086,-2641.02770045,0.0004192,120]
[361840112,1747827129096,-2641.02770045,0.0004192,120]
[361840113,1747827129107,-2641.02770045,0.0004192,120]
[361840114,1747827129119,-2641.02770045,0.0004192,120]
[361840115,1747827129130,-2641.02770045,0.0004192,120]
[361840116,1747827129141,-2641.02,0.0004192,120]
[361840117,1747827129151,-6162.39796772,0.0004192,120]
[361840118,1747827129160,-6162.39796772,0.0004192,120]
[361840119,1747827129170,-6162.39796772,0.0004192,120]
[361840120,1747827129179,-6162.39796772,0.0004192,120]
[361840121,1747827129189,-6162.39796772,0.0004192,120]
[361840122,1747827129199,-6162.39796772,0.0004192,120]
[361840123,1747827129208,-6162.39796772,0.0004192,120]
[361840124,1747827129218,-6162.39796772,0.0004192,120]
[361840125,1747827129228,-6162.39796772,0.0004192,120]
[361840126,1747827129237,-6162.39796772,0.0004192,120]
[361840127,1747827129247,-6162.39796772,0.0004192,120]
[361840128,1747827129256,-6162.39796772,0.0004192,120]
[361840129,1747827129267,-6162.39796772,0.0004192,120]
[361840130,1747827129276,-6162.39796772,0.0004192,120]
[361840131,1747827129286,-6162.39796772,0.0004192,120]
[361840132,1747827129296,-6162.39796772,0.0004192,120]
[361840133,1747827129306,-6162.39796772,0.0004192,120]
[361840134,1747827129315,-6162.39796772,0.0004192,120]
[361840135,1747827129325,-6162.39796772,0.0004192,120]
[361840136,1747827129335,-6162.39,0.0004192,120]
[361840137,1747827129345,-869.93365403,0.0004192,120]
[361840138,1747827129355,-869.93365403,0.0004192,120]
[361840139,1747827129365,-869.93365403,0.0004192,120]
[361840140,1747827129375,-869.93365403,0.0004192,120]
[361840141,1747827129386,-869.93365403,0.0004192,120]
[361840142,1747827129395,-869.93365403,0.0004192,120]
[361840143,1747827129405,-869.93365403,0.0004192,120]
[361840144,1747827129415,-869.93365403,0.0004192,120]
[361840145,1747827129424,-869.93365403,0.0004192,120]
[361840146,1747827129434,-869.93365403,0.0004192,120]
[361840147,1747827129444,-869.93365403,0.0004192,120]
[361840148,1747827129454,-869.93365403,0.0004192,120]
[361840149,1747827129464,-869.93365403,0.0004192,120]
[361840150,1747827129474,-869.93365403,0.0004192,120]
[361840151,1747827129484,-869.93365403,0.0004192,120]
[361840152,1747827129494,-869.93365403,0.0004192,120]
[361840153,1747827129503,-869.93365403,0.0004192,120]
[361840154,1747827129513,-869.93365403,0.0004192,120]
[361840155,1747827129523,-869.93365403,0.0004192,120]
[361840156,1747827129533,-869.93,0.0004192,120]
[361840157,1747827129543,-2029.84519274,0.0004192,120]
[361840158,1747827129555,-2029.84519274,0.0004192,120]
[361840159,1747827129566,-2029.84519274,0.0004192,120]
[361840160,1747827129575,-2029.84519274,0.0004192,120]
[361840161,1747827129585,-2029.84519274,0.0004192,120]
[361840162,1747827129595,-2029.84519274,0.0004192,120]
[361840163,1747827129605,-2029.84519274,0.0004192,120]
[361840164,1747827129614,-2029.84519274,0.0004192,120]
[361840165,1747827129625,-2029.84519274,0.0004192,120]
[361840166,1747827129634,-2029.84519274,0.0004192,120]
[361840167,1747827129644,-2029.84519274,0.0004192,120]
[361840168,1747827129653,-2029.84519274,0.0004192,120]
[361840169,1747827129663,-2029.84519274,0.0004192,120]
[361840170,1747827129673,-2029.84519274,0.0004192,120]
[361840171,1747827129684,-2029.84519274,0.0004192,120]
[361840172,1747827129693,-2029.84519274,0.0004192,120]
[361840173,1747827129703,-2029.84519274,0.0004192,120]
[361840174,1747827129718,-2029.84519274,0.0004192,120]
[361840175,1747827129731,-2029.84519274,0.0004192,120]
[361840176,1747827129742,-2029.84,0.0004192,120]
[361840177,1747827129751,-312.94210176,0.0004192,120]
[361840178,1747827129761,-312.94210176,0.0004192,120]
[361840179,1747827129772,-312.94210176,0.0004192,120]
[361840180,1747827129783,-312.94210176,0.0004192,120]
[361840181,1747827129794,-312.94210176,0.0004192,120]
[361840182,1747827129804,-312.94210176,0.0004192,120]
[361840183,1747827129815,-312.94210176,0.0004192,120]
[361840184,1747827129826,-312.94210176,0.0004192,120]
[361840185,1747827129836,-312.94210176,0.0004192,120]
[361840186,1747827129845,-312.94210176,0.0004192,120]
[361840187,1747827129855,-312.94210176,0.0004192,120]
[361840188,1747827129866,-312.94210176,0.0004192,120]
[361840189,1747827129876,-312.94210176,0.0004192,120]
[361840190,1747827129886,-312.94210176,0.0004192,120]
[361840191,1747827129897,-312.94210176,0.0004192,120]
[361840192,1747827129908,-312.94210176,0.0004192,120]
[361840193,1747827129917,-312.94210176,0.0004192,120]
[361840194,1747827129928,-312.94210176,0.0004192,120]
[361840195,1747827129938,-312.94210176,0.0004192,120]
[361840196,1747827129948,-312.94,0.0004192,120]
[361840197,1747827129959,-730.19823743,0.0004192,120]
[361840198,1747827129970,-730.19823743,0.0004192,120]
[361840199,1747827129982,-730.19823743,0.0004192,120]
[361840200,1747827129992,-730.19823743,0.0004192,120]
[361840201,1747827130002,-730.19823743,0.0004192,120]
[361840202,1747827130012,-730.19823743,0.0004192,120]
[361840203,1747827130022,-730.19823743,0.0004192,120]
[361840204,1747827130032,-730.19823743,0.0004192,120]
[361840205,1747827130042,-730.19823743,0.0004192,120]
[361840206,1747827130051,-730.19823743,0.0004192,120]
[361840207,1747827130062,-730.19823743,0.0004192,120]
[361840208,1747827130071,-730.19823743,0.0004192,120]
[361840209,1747827130081,-730.19823743,0.0004192,120]
[361840210,1747827130091,-730.19823743,0.0004192,120]
[361840211,1747827130101,-730.19823743,0.0004192,120]
[361840212,1747827130111,-730.19823743,0.0004192,120]
[361840213,1747827130121,-730.19823743,0.0004192,120]
[361840214,1747827130139,-730.19823743,0.0004192,120]
[361840215,1747827130154,-730.19823743,0.0004192,120]
[361840216,1747827130165,-730.19,0.0004192,120]
[361840217,1747827130176,-1577.0,0.0004197,120]
[361840218,1747827130187,-1577.0,0.0004197,120]
[361840219,1747827130198,-420.0,0.0004197,120]
[361840220,1747827130209,-703.0,0.0004197,120]
[361840221,1747827130220,-420.0,0.0004197,120]
[361840222,1747827130230,-703.0,0.0004197,120]
[361840223,1747827130241,-369.0,0.0004197,120]
[361840224,1747827130252,-369.0,0.0004197,120]
[361840225,1747827130262,-963.0,0.0004197,120]
[361840226,1747827130273,-963.0,0.0004197,120]
[361840227,1747827130283,-166.48,0.0004197,120]
[361840228,1747827130293,-214.5946766,0.00041971,2]
[361840229,1747827130303,-151.0,0.00041971,14]
[361840230,1747827130314,-274.09239,0.00041971,14]
[361840231,1747827130324,-193063.0690871,0.00041971,2]
[361840232,1747827130335,-150.0,0.00041976,30]
[361840233,1747827130345,-1577.0,0.0004198,120]
[361840234,1747827130356,-1577.0,0.0004198,120]
[361840235,1747827130366,-1577.0,0.0004198,120]
[361840236,1747827130376,-420.0,0.0004198,120]
[361840237,1747827130386,-703.0,0.0004198,120]
[361840238,1747827130396,-420.0,0.0004198,120]
[361840239,1747827130406,-703.0,0.0004198,120]
[361840240,1747827130416,-420.0,0.0004198,120]
[361840241,1747827130426,-703.0,0.0004198,120]
[361840242,1747827130436,-369.0,0.0004198,120]
[361840243,1747827130446,-150.5,0.0004198,120]
[361840244,1747827130456,-369.0,0.0004198,120]
[361840245,1747827130466,-369.0,0.0004198,120]
[361840246,1747827130476,-420.45,0.0004198,120]
[361840247,1747827130485,-375.56,0.0004198,120]
[361840248,1747827130496,-1586.95,0.0004198,120]
[361840249,1747827130505,-712.86,0.0004198,120]
[361840250,1747827130517,-963.0,0.0004198,120]
[361840251,1747827130527,-963.0,0.0004198,120]
[361840252,1747827130537,-963.0,0.0004198,120]
[361840253,1747827130548,-972.77,0.0004198,120]
[361840254,1747827130558,-1577.0,0.0004199,120]
[361840255,1747827130576,-1577.0,0.0004199,120]
[361840256,1747827130586,-1577.0,0.0004199,120]
[361840257,1747827130596,-420.0,0.0004199,120]
[361840258,1747827130607,-703.0,0.0004199,120]
[361840259,1747827130617,-420.0,0.0004199,120]
[361840260,1747827130627,-703.0,0.0004199,120]
[361840261,1747827130638,-420.0,0.0004199,120]
[361840262,1747827130648,-703.0,0.0004199,120]
[361840263,1747827130658,-369.0,0.0004199,120]
[361840264,1747827130669,-150.5,0.0004199,120]
[361840265,1747827130678,-369.0,0.0004199,120]
[361840266,1747827130689,-369.0,0.0004199,120]
[361840267,1747827130699,-420.0,0.0004199,120]
[361840268,1747827130709,-703.0,0.0004199,120]
[361840269,1747827130720,-1577.0,0.0004199,120]
[361840270,1747827130732,-369.0,0.0004199,120]
[361840271,1747827130742,-963.0,0.0004199,120]
[361840272,1747827130751,-963.0,0.0004199,120]
[361840273,1747827130761,-963.0,0.0004199,120]
[361840274,1747827130773,-963.0,0.0004199,120]
[361840275,1747827130784,-150.0,0.00041996,2]
[361840276,1747827130794,-571.42474331,0.00041998,60]
[361840277,1747827130805,-386.53090115,0.00041998,60]
[361840278,1747827130816,-50000.0,0.00042,42]
[361840279,1747827130826,-4000.0,0.00042,120]
[361840280,1747827130836,-373.04124757,0.00042,120]
[361840281,1747827130847,-2000.0,0.00042,120]
[361840282,1747827130857,-10000.0,0.00042,30]
[361840283,1747827130867,-69000.0,0.00042,20]
[361840284,1747827130879,-303.71030573,0.00042,120]
[361840285,1747827130889,-152.69423103,0.00042,120]
[361840286,1747827130899,-3643.96188616,0.00042,30]
[361840287,1747827130910,-3630.52394901,0.00042,120]
[361840288,1747827130920,-360610.26486172,0.00042,2]
[361840289,1747827130930,-1023.29716902,0.00042,30]
[361840290,1747827130941,-337.11336667,0.00042,120]
[361840291,1747827130952,-1407.5757245,0.00042,30]
[361840292,1747827130962,-355814.0,0.00042,120]
[361840293,1747827130972,-1530.0,0.00042,120]
[361840294,1747827130982,-64943.65090373,0.00042,14]
[361840295,1747827130994,-2092.32803952,0.00042,30]
[361840296,1747827131011,-354093.6438416,0.00042,30]
[361840297,1747827131387,-3551.55015786,0.00042,30]
[361840298,1747827131993,-1354.70249504,0.00034794,5]
[361840299,1747827132312,-1624.60049396,0.00034694,2]
[361840300,1747827132326,-343.68943434,0.00034694,2]
[361840301,1747827132699,-533.4394698,0.00034694,2]
[361840302,1747827132715,-3522.61026685,0.00034694,2]
[361840303,1747827483179,200.0,0.00022501,117]
[361840304,1747827854527,1000.0,0.00025,60]
[361840305,1747827930034,995.34,0.0002,30]
[361840310,1747828231496,-387.28345461,0.00013698,2]
[361840311,1747828231507,-12.71654439,0.00013698,2]
[361840312,1747828231517,-150.35,0.00013699,2]
[361840313,1747828231526,-1635.77468342,0.000194,2]
[361840314,1747828231538,-1231.029795,0.000194,2]
[361840315,1747828231549,-1355.9636651,0.000194,2]
[361840316,1747828231563,-169.31343352,0.000238,2]
[361840317,1747828231573,-150.35,0.00023973,2]
[361840318,1747828231582,-500.0,0.0002789,2]
[361840319,1747828231592,-208.5737354,0.000279,18]
[361840320,1747828231603,-637.11,0.00029069,2]
[361840321,1747828231613,-208.5737353,0.0003,22]
[361840322,1747828231624,-1600.0,0.0003069,2]
[361840323,1747828231633,-2751.0,0.00030691,120]
[361840324,1747828231643,-167.78,0.00030692,2]
[361840325,1747828231654,-311.26,0.00030693,120]
[361840326,1747828231663,-394.0,0.0003073,2]
[361840327,1747828231673,-1500.0,0.00030731,120]
[361840328,1747828231683,-250.0,0.00030732,2]
[361840329,1747828231693,-1000.0,0.00030734,2]
[361840330,1747828231702,-150.0,0.00030924,7]
[361840331,1747828231712,-637.11,0.00031333,2]
[361840332,1747828231721,-217.45,0.00031716,2]
[361840333,1747828231731,-200.0,0.00031716,2]
[361840334,1747828231743,-152.6,0.00031722,2]
[361840335,1747828231755,-910.76,0.00031744,120]
[361840336,1747828231764,-150.0,0.00031793,2]
[361840337,1747828231774,-304.56,0.00031794,2]
[361840338,1747828231783,-305.3,0.00031794,2]
[361840339,1747828231792,-262.38,0.00031794,2]
[361840340,1747828231802,-411.59761263,0.00031794,2]
[361840341,1747828231814,-2875.31651659,0.00031794,2]
[361840342,1747828231827,-6713.07587078,0.00031794,2]
[361840343,1747828231836,-200.0,0.00031829,2]
[361840344,1747828231846,-301.14,0.00032003,2]
[361840345,1747828231855,-303.83,0.00032003,2]
[361840346,1747828231864,-303.26,0.00032003,2]
[361840347,1747828231873,-301.52,0.00032003,2]
[361840348,1747828231883,-208.5737353,0.000321,26]
[361840349,1747828231892,-581.09,0.00032279,2]
[361840351,1747828231902,-894.27,0.00032398,2]
[361840354,1747828231913,-302.88,0.00032402,2]
[361840356,1747828231922,-301.41,0.00032479,2]
[361840358,1747828231932,-302.03,0.00032479,2]
[361840360,1747828231942,-301.31,0.00032479,2]
[361840362,1747828231952,-305.53,0.000326,2]
[361840364,1747828231962,-1360.89,0.00032624,2]
[361840366,1747828231971,-168.03,0.00032635,2]
[361840368,1747828231981,-420.0,0.00032876,5]
[361840371,1747828231991,-272.21550229,0.00032876,5]
[361840373,1747828232001,-420.0,0.00032876,5]
[361840376,1747828232023,-420.0,0.00032876,5]
[361840378,1747828232033,-420.0,0.00032876,5]
[361840379,1747828232043,-384.96061157,0.00032876,5]
[361840381,1747828232053,-498.56981276,0.00032876,5]
[361840383,1747828232062,-380.0,0.00032876,5]
[361840385,1747828232072,-500.0,0.00032876,2]
[361840387,1747828232082,-420.0,0.00032876,5]
[361840389,1747828232095,-420.0,0.00032876,5]
[361840391,1747828232104,-420.0,0.00032876,5]
[361840393,1747828232114,-336.38981859,0.00032876,5]
[361840395,1747828232125,-420.0,0.00032876,5]
[361840397,1747828232134,-420.0,0.00032876,5]
[361840399,1747828232144,-420.0,0.00032876,5]
[361840401,1747828232154,-420.0,0.00032876,5]
[361840403,1747828232165,-420.0,0.00032876,5]
[361840405,1747828232174,-500.0,0.00032876,5]
[361840407,1747828232184,-503.75,0.00032876,5]
[361840409,1747828232194,-500.0,0.00032876,5]
[361840411,1747828232203,-400.0,0.00032876,5]
[361840413,1747828232213,-420.0,0.00032876,5]
[361840415,1747828232223,-466.57,0.00032876,5]
[361840417,1747828232233,-420.0,0.00032876,5]
[361840419,1747828232243,-420.0,0.00032876,5]
[361840421,1747828232253,-400.0,0.00032876,5]
[361840423,1747828232263,-440.03,0.00032876,5]
[361840425,1747828232273,-420.0,0.00032876,5]
[361840427,1747828232282,-420.0,0.00032876,5]
[361840429,1747828232292,-420.0,0.00032876,5]
[361840431,1747828232302,-400.0,0.00032876,5]
[361840433,1747828232312,-401.2464519,0.00032876,5]
[361840435,1747828232321,-484.94,0.00032876,5]
[361840437,1747828232331,-420.0,0.00032876,5]
[361840439,1747828232340,-420.0,0.00032876,5]
[361840441,1747828232350,-420.0,0.00032876,5]
[361840443,1747828232360,-245.41442681,0.00032876,5]
[361840446,1747828232374,-154.58557319,0.00032876,5]
[361840448,1747828232383,-258.05656677,0.00032876,5]
[361840450,1747828232395,-141.94343323,0.00032876,5]
[361840452,1747828232405,-420.0,0.00032876,5]
[361840454,1747828232415,-400.0,0.00032876,5]
[361840456,1747828232425,-420.0,0.00032876,5]
[361840457,1747828232436,-380.8253408,0.00032876,5]
[361840459,1747828232446,-420.0,0.00032876,5]
[361840461,1747828232461,-420.0,0.00032876,5]
[361840462,1747828232471,-420.0,0.00032876,5]
[361840463,1747828232481,-420.0,0.00032876,5]
[361840464,1747828232491,-420.0,0.00032876,5]
[361840465,1747828232501,-420.0,0.00032876,5]
[361840466,1747828232512,-420.0,0.00032876,5]
[361840467,1747828232522,-400.0,0.00032876,2]
[361840468,1747828232532,-221.58582381,0.00032876,5]
[361840469,1747828232549,-292.48417619,0.00032876,5]
[361840470,1747828232559,-420.0,0.00032876,5]
[361840471,1747828232569,-400.0,0.00032876,5]
[361840472,1747828232579,-400.0,0.00032876,5]
[361840473,1747828232588,-400.0,0.00032876,5]
[361840474,1747828232598,-400.0,0.00032876,5]
[361840475,1747828232607,-420.0,0.00032876,5]
[361840476,1747828232618,-420.0,0.00032876,5]
[361840477,1747828232628,-420.0,0.00032876,5]
[361840478,1747828232638,-420.0,0.00032876,5]
[361840479,1747828232648,-420.0,0.00032876,5]
[361840480,1747828232658,-420.0,0.00032876,5]
[361840481,1747828232668,-420.0,0.00032876,5]
[361840482,1747828232677,-452.8,0.00032876,5]
[361840483,1747828232687,-400.0,0.00032876,5]
[361840484,1747828232697,-420.0,0.00032876,5]
[361840485,1747828232707,-404.13617223,0.00032876,5]
[361840486,1747828232717,-509.58156655,0.00032876,5]
[361840487,1747828232727,-420.0,0.00032876,5]
[361840488,1747828232737,-400.0,0.00032876,5]
[361840489,1747828232747,-518.62,0.00032876,5]
[361840490,1747828232757,-420.0,0.00032876,5]
[361840491,1747828232767,-420.0,0.00032876,5]
[361840492,1747828232777,-299.16695738,0.00032876,5]
[361840493,1747828232790,-120.83304262,0.00032876,5]
[361840494,1747828232800,-198.62679458,0.00032876,5]
[361840495,1747828232818,-201.37320542,0.00032876,5]
[361840496,1747828232828,-135.29372175,0.00032876,5]
[361840497,1747828237611,-300.0,0.0003069,2]
[361840498,1747828237621,-284.70627825,0.00032876,5]
[361840499,1747828237632,-304.74421768,0.00032876,5]
[361840500,1747828237643,-400.0,0.00032876,5]
[361840501,1747828237652,-420.0,0.00032876,5]
[361840502,1747828237662,-420.0,0.00032876,5]
[361840503,1747828237671,-420.0,0.00032876,5]
[361840504,1747828237681,-553.99,0.00032876,5]
[361840505,1747828237690,-420.0,0.00032876,5]
[361840506,1747828237701,-420.0,0.00032876,5]
[361840507,1747828237711,-420.0,0.00032876,5]
[361840509,1747828237721,-420.0,0.00032876,5]
[361840511,1747828237730,-420.0,0.00032876,5]
[361840513,1747828237740,-420.0,0.00032876,5]
[361840515,1747828237750,-420.0,0.00032876,5]
[361840516,1747828237761,-420.0,0.00032876,5]
[361840518,1747828237770,-420.0,0.00032876,5]
[361840520,1747828237780,-420.0,0.00032876,5]
[361840521,1747828237790,-374.45836286,0.00032876,5]
[361840522,1747828237800,-420.0,0.00032876,5]
[361840523,1747828237814,-489.17,0.00032876,5]
[361840527,1747828237823,-420.0,0.00032876,5]
[361840528,1747828237833,-420.0,0.00032876,5]
[361840529,1747828237843,-420.8,0.00032876,5]
[361840530,1747828237853,-420.0,0.00032876,5]
[361840531,1747828237863,-420.0,0.00032876,5]
[361840532,1747828237874,-420.0,0.00032876,5]
[361840533,1747828237884,-420.0,0.00032876,5]
[361840534,1747828237894,-420.0,0.00032876,5]
[361840535,1747828237904,-525.48086813,0.00032876,5]
[361840536,1747828237914,-420.0,0.00032876,5]
[361840537,1747828237925,-420.0,0.00032876,5]
[361840538,1747828237936,-420.0,0.00032876,5]
[361840539,1747828237947,-420.0,0.00032876,5]
[361840540,1747828237956,-400.0,0.00032876,5]
[361840541,1747828237967,-420.0,0.00032876,5]
[361840542,1747828237977,-420.0,0.00032876,5]
[361840543,1747828237986,-420.0,0.00032876,5]
[361840544,1747828237996,-344.96619378,0.00032876,5]
[361840545,1747828238006,-420.0,0.00032876,5]
[361840546,1747828238015,-420.0,0.00032876,5]
[361840547,1747828238025,-542.91,0.00032876,5]
[361840548,1747828238035,-420.0,0.00032876,5]
[361840549,1747828238045,-503.66,0.00032876,5]
[361840550,1747828238055,-420.0,0.00032876,5]
[361840551,1747828238066,-646.58,0.00032876,5]
[361840552,1747828238077,-420.0,0.00032876,5]
[361840553,1747828238091,-420.0,0.00032876,5]
[361840554,1747828238101,-420.0,0.00032876,5]
[361840555,1747828238111,-420.0,0.00032876,5]
[361840556,1747828238121,-420.0,0.00032876,5]
[361840557,1747828238131,-420.0,0.00032876,5]
[361840558,1747828238141,-420.0,0.00032876,5]
[361840559,1747828238150,-420.0,0.00032876,5]
[361840560,1747828238162,-420.0,0.00032876,5]
[361840561,1747828238171,-420.0,0.00032876,5]
[361840562,1747828238181,-420.0,0.00032876,5]
[361840563,1747828238191,-420.0,0.00032876,5]
[361840564,1747828238200,-340.0,0.00032876,5]
[361840565,1747828238211,-420.0,0.00032876,5]
[361840566,1747828238221,-420.0,0.00032876,5]
[361840567,1747828238231,-420.0,0.00032876,5]
[361840568,1747828238242,-320.0,0.00032876,5]
[361840569,1747828238254,-517.86,0.00032876,5]
[361840570,1747828238265,-420.0,0.00032876,5]
[361840571,1747828238274,-834.6,0.00032876,5]
[361840572,1747828238284,-420.0,0.00032876,5]
[361840573,1747828238293,-420.0,0.00032876,5]
[361840574,1747828238303,-420.0,0.00032876,5]
[361840575,1747828238313,-420.0,0.00032876,5]
[361840576,1747828238322,-420.0,0.00032876,5]
[361840577,1747828238333,-420.0,0.00032876,5]
[361840579,1747828238342,-532.34,0.00032876,5]
[361840580,1747828238351,-420.0,0.00032876,5]
[361840581,1747828238361,-420.0,0.00032876,5]
[361840582,1747828238371,-420.0,0.00032876,5]
[361840583,1747828238380,-420.0,0.00032876,5]
[361840584,1747828238390,-420.0,0.00032876,5]
[361840585,1747828238400,-420.0,0.00032876,5]
[361840586,1747828238409,-420.0,0.00032876,5]
[361840587,1747828238419,-400.0,0.00032876,5]
[361840588,1747828238429,-420.0,0.00032876,5]
[361840589,1747828238439,-420.0,0.00032876,5]
[361840590,1747828238448,-420.0,0.00032876,5]
[361840591,1747828238460,-420.0,0.00032876,5]
[361840592,1747828238469,-420.0,0.00032876,5]